Cogmind - Beta 16.1 @@@ ROGUE MODE // 2026.03.01 @ 23:11:11 Player: Klax Result: Destroyed by G-34 Mercenary with Small Laser Performance ------------- Evolutions (1) 500 Regions Visited (3) 600 Robots Destroyed (17) 85 Value Destroyed (496) 496 Prototype IDs (0) 0 Alien Tech Used (0) 0 Bonus (0) 0 TOTAL SCORE: 1681 Bonus ------- None Cogmind --------- Core Integrity 0/400 Matter 280/300 Energy 46/100 System Corruption 9% Temperature Cool (6) Movement Core (50) Location -9/Storage Parts ------- > --- POWER (3) -------- (None) > --- PROPULSION (2) --- (None) > --- UTILITY (2) ------ (None) > --- WEAPON (2) ------- Grenade Launcher > --- INVENTORY (5) ---- Hover Unit ECM Suite Peak State ------------ > --- POWER ------------ Light Ion Engine > --- PROPULSION ------- Aluminum Leg > --- UTILITY ---------- Visual Processing Unit Salvage Targeting Computer > --- WEAPON ----------- Medium Laser Heavy Assault Rifle > --- INVENTORY -------- Hover Unit ECM Suite Small Laser Beam Rifle Grenade Launcher [Rating: 9] Favorites ----------- Power Light Ion Engine Engine Light Ion Engine Propulsion Wheel Leg Aluminum Leg Wheel Wheel Flight Unit Flight Unit Utility Visual Processing Unit Device Heat Sink Processor Visual Processing Unit Weapon Medium Laser Energy Gun Medium Laser Ballistic Gun Assault Rifle Launcher Grenade Launcher Build | -11 -10 -9 -9 ------- Run | Yrd Mat Mat Sto Slots Evolved 2 | . . 2 . Power 2 | . . 2 . Propulsion . | . . . . Utility . | . . . . Weapon . | . . . . Parts Attached 17 | 6 5 3 3 Power 3 | 2 . 1 . Engine 3 | 2 . 1 . Core . | . . . . Reactor . | . . . . Propulsion 4 | 2 1 1 . Treads . | . . . . Leg 1 | . . 1 . Wheel 2 | 2 . . . Hover . | . . . . Flight 1 | . 1 . . Utility 3 | 1 1 1 . Device 1 | 1 . . . Storage . | . . . . Processor 2 | . 1 1 . Hackware . | . . . . Protection . | . . . . Artifact . | . . . . Weapon 7 | 1 3 . 3 Energy Gun 3 | . 1 . 2 Energy Cannon . | . . . . Ballistic Gun 3 | 1 1 . 1 Ballistic Cannon . | . . . . Launcher 1 | . 1 . . Special Weapon . | . . . . Impact Weapon . | . . . . Slashing Weapon . | . . . . Piercing Weapon . | . . . . Special Melee Weapon . | . . . . Unidentified Prototypes . | . . . . Parts Lost 10 | . 1 1 8 Power 2 | . 1 . 1 Propulsion 1 | . . . 1 Utility 2 | . . . 2 Weapon 5 | . . 1 4 Highest Loss Streak 8 | . 1 1 8 To Critical Strikes . | . . . . Average Backups 4 | 2 5 4 4 Power . | . . . . Propulsion 1 | 1 2 1 1 Utility . | . . . 1 Weapon 2 | 1 2 2 2 Tool/Special . | . . . . Unused Backups 3 | . 1 . 2 Power . | . . . . Propulsion 2 | . 1 . 1 Utility 1 | . . . 1 Weapon . | . . . . Tool/Special . | . . . . Average Slot Usage (%) 59 | . 78 45 49 Engine 7 | . 12 1 8 Leg 6 | . . 11 9 Wheel 8 | . 21 . . Device 7 | . 14 5 . Processor 13 | . 9 16 17 Energy Gun 7 | . 4 7 11 Ballistic Gun 7 | . 13 3 2 Launcher 1 | . 2 . . Peak Build Rating 9 | 5 8 7 9 Average Rating 5 | 2 6 5 6 On Entrance 4 | . 5 5 7 Avg Prop Armor Cover (%) . | . . . . Naked Turns 5 | . . . 5 Heaviest Build 11 | 8 11 5 8 Greatest Support 20 | 20 20 10 10 Greatest Overweight (x) 1 | . 1 . 1 Average Overweight (x) . | . . . . Largest Inventory Capacity 5 | 5 5 5 5 Average Capacity 5 | 5 5 5 5 Most Carried 5 | 5 5 5 5 Average Carried 4 | 2 4 4 4 Final Capacity 5 | 5 5 5 5 Final Carried 5 | 5 5 5 2 Class Distribution -------------------- 100% | Mutant Dominant Class ---------------- Mutant | -10/Materials Mutant | -9/Materials Mutant | -9/Storage Resources | -11 -10 -9 -9 ----------- Run | Yrd Mat Mat Sto Matter Collected 498 | 278 134 39 47 Remotely . | . . . . Salvage Created 598 | 34 172 112 280 Parts 42 | 3 18 8 13 Haulers Intercepted . | . . . . Recyclers Shooed 1 | . . 1 . Parts Field Recycled . | . . . . Retrieved Matter . | . . . . Parts Self-Destructed . | . . . . Prevented . | . . . . Parts Restored . | . . . . Kills | -11 -10 -9 -9 ------- Run | Yrd Mat Mat Sto Combat Hostiles Destroyed 14 | 1 6 2 5 Guns 12 | 1 4 2 5 AOE 2 | . 2 . . Classes Destroyed 6 | 1 2 1 2 Worker 1 | . . . 1 Watcher 2 | . 1 . 1 Swarmer 2 | . 2 . . Grunt 8 | 1 4 . 3 Brawler 1 | . . . 1 Sentry 3 | . . 2 1 Best Kill Streak 4 | 1 2 2 4 Combat Bots Only 3 | 1 2 2 3 Max Kills in Single Turn 2 | 1 2 1 1 Gunslinging . | . . . . Exploded 2 | . 2 . . Melee . | . . . . Uniques/NPCs Destroyed . | . . . . Combat | -11 -10 -9 -9 -------- Run | Yrd Mat Mat Sto Hostile Shots Fired 158 | 6 47 19 86 Missed 44 | 3 14 9 18 Hits 114 | 3 33 10 68 Melee 5 | . . . 5 Projectile 109 | 3 33 10 63 Critical Strikes 4 | . . 2 2 Damage Taken 1368 | 33 374 140 821 Core 558 | 10 145 56 347 Absorbed by Shields . | . . . . Core Remaining (%) 67 | 96 38 . . Volleys Fired 79 | 6 23 13 37 Largest 2 | 1 2 1 2 Hottest 96 | 20 70 50 96 Shots Fired 94 | 6 28 13 47 Gun 92 | 6 27 13 46 Cannon . | . . . . Launcher 2 | . 1 . 1 Special . | . . . . Kinetic 46 | 6 23 8 9 Thermal 46 | . 4 5 37 Explosive 2 | . 1 . 1 Electromagnetic . | . . . . Robot Hit Streak 10 | 5 6 4 10 Robot Miss Streak 3 | 1 3 2 2 Penetration Max . | . . . . Secondary Targets . | . . . . Shots Hit Robots 57 | 5 13 7 32 Core Hits 28 | 1 9 4 14 Critical Kills . | . . . . Critical Parts Destroyed . | . . . . Critical Strikes 3 | . . 1 2 Burn 3 | . . 1 2 Melee Attacks . | . . . . Impact . | . . . . Slashing . | . . . . Piercing . | . . . . Sneak Attacks . | . . . . Combat Hostiles . | . . . . Follow-up Attacks . | . . . . Damage Inflicted 855 | 65 240 100 450 Guns 746 | 65 178 100 403 Cannons . | . . . . Explosions 109 | . 62 . 47 Melee . | . . . . Ramming . | . . . . Kinetic 340 | 65 152 49 74 Thermal 406 | . 26 51 329 Explosive 109 | . 62 . 47 Electromagnetic . | . . . . Impact . | . . . . Slashing . | . . . . Piercing . | . . . . Highest Corruption 9 | . . . 9 Average Corruption 8 | . . . 8 Corruption Purged . | . . . . Corruption Blocked . | . . . . Effects 1 | . . . 1 Data Loss (major) 1 | . . . 1 Overload Shots . | . . . . Overflow Damage . | . . . . Projectiles . | . . . . Explosions . | . . . . Melee . | . . . . Knockbacks . | . . . . Impact . | . . . . Kinetic . | . . . . Secondary . | . . . . Self-Inflicted Damage . | . . . . Shots . | . . . . Rammed . | . . . . Targets Rammed . | . . . . Kicked . | . . . . Crushed . | . . . . Highest Temperature 162 | . . . 162 Average Temperature 54 | . . . 54 Received Heat Transfer 657 | 18 180 87 372 Siege Activations . | . . . . Martial Activations . | . . . . Shielding Activations . | . . . . Robots Disrupted . | . . . . Combat Hostiles . | . . . . Robots Corrupted . | . . . . Combat Hostiles . | . . . . Parts Fried . | . . . . Impact Corruptions . | . . . . Robots Melted . | . . . . Combat Hostiles . | . . . . Parts Melted 6 | . . . 6 Heat Transferred 1382 | . 74 222 1086 Parts Sabotaged . | . . . . Parts Stolen . | . . . . Parts Stripped . | . . . . Power Chain Reactions . | . . . . Alert | -11 -10 -9 -9 ------- Run | Yrd Mat Mat Sto Maximum Alert Level . | . . . . Low Security (%) 100 | 100 100 100 100 Level 1 . | . . . . Level 2 . | . . . . Level 3 . | . . . . Level 4 . | . . . . Level 5 . | . . . . High Security . | . . . . Max Security . | . . . . Peak Influence 114 | 20 114 60 70 Initial 26 | . 6 26 . Average 27 | 2 51 20 14 Influence Increases 382 | 20 161 62 139 Destroy 0b10 Robot/C 280 | 20 120 40 100 Destroy 0b10 Robot/NC 15 | . 5 . 10 Destroy Leader 64 | . 22 20 22 Successful Hack 6 | . 4 2 . Destroy Structure 17 | . 10 . 7 Influence Decreases 330 | 10 107 126 87 Entered New Map 42 | . 4 38 . Time Decay 225 | 10 93 82 40 Lost Part 63 | . 10 6 47 Squads Dispatched 4 | . 2 . 2 Investigation . | . . . . Extermination . | . . . . Reinforcement 4 | . 2 . 2 Assault . | . . . . Garrison . | . . . . Intercept . | . . . . Searches Triggered . | . . . . Construction Impeded . | . . . . Haulers Reinforced . | . . . . Active Scanning Responses . | . . . . Cargo Convoy Interrupts . | . . . . Stealth | -11 -10 -9 -9 --------- Run | Yrd Mat Mat Sto Distress Signals 3 | . . 1 2 Communications Jammed . | . . . . Distress Signals . | . . . . Times Spotted 32 | 1 12 6 13 Peak Tracking Total 7 | 1 5 3 7 Tactical Retreats . | . . . . Traps | -11 -10 -9 -9 ------- Run | Yrd Mat Mat Sto Traps Triggered . | . . . . Indirectly . | . . . . Trap Hack Attempts . | . . . . Triggered . | . . . . Disarmed . | . . . . Reprogrammed . | . . . . Reused . | . . . . Traps Extracted . | . . . . Installed . | . . . . Triggered . | . . . . Machines | -11 -10 -9 -9 ---------- Run | Yrd Mat Mat Sto Machines Disabled . | . . . . Max in Single Turn . | . . . . Machines Repaired . | . . . . Machines Dismantled . | . . . . Machines Sabotaged . | . . . . Overloaded Fab Kills . | . . . . Hacking | -11 -10 -9 -9 --------- Run | Yrd Mat Mat Sto Machines Accessed 3 | . 1 2 . Terminals 3 | . 1 2 . Fabricators . | . . . . Repair Stations . | . . . . Recycling Units . | . . . . Scanalyzers . | . . . . Garrison Access . | . . . . Total Hacks 12 | . 4 8 . Successful 9 | . 4 5 . Failed 3 | . . 3 . Catastrophic . | . . . . Database Lockouts . | . . . . Manual . | . . . . Terminals 12 | . 4 8 . Fabricators . | . . . . Repair Stations . | . . . . Recycling Units . | . . . . Scanalyzers . | . . . . Garrison Access . | . . . . Terminal Hacks 9 | . 4 5 . Record 8 | . 3 5 . Locate Traps 1 | . 1 . . Fabricator Hacks . | . . . . Repair Station Hacks . | . . . . Recycling Unit Hacks . | . . . . Scanalyzer . | . . . . Garrison Access Hacks . | . . . . Unauthorized Hacks . | . . . . Terminals . | . . . . Fabricators . | . . . . Repair Stations . | . . . . Recycling Units . | . . . . Scanalyzers . | . . . . Garrison Access . | . . . . Data Cores Recovered . | . . . . Used . | . . . . Hacking Detections . | . . . . Full Trace Events . | . . . . Feedback Events . | . . . . Feedback Blocked . | . . . . Robot Schematics Acquired . | . . . . Robots Built . | . . . . Authchips . | . . . . Time . | . . . . Total Robot Build Rating . | . . . . Part Schematics Acquired . | . . . . Parts Built . | . . . . Authchips . | . . . . Time . | . . . . Total Part Build Rating . | . . . . Part Studies Acquired . | . . . . Parts Repaired . | . . . . Time . | . . . . Parts Recycled . | . . . . Recycled Matter . | . . . . Retrieved Matter . | . . . . Retrieved Components . | . . . . Parts Scanalyzed . | . . . . Part Schematics Acquired . | . . . . Parts Damaged . | . . . . Bothacking | -11 -10 -9 -9 ------------ Run | Yrd Mat Mat Sto Used RIF Installer . | . . . . Robots Hacked . | . . . . Non-combat . | . . . . Combat . | . . . . Robot Hacks Applied . | . . . . Relay Couplers Released . | . . . . Fabnet Peak Effective % . | . . . . Robots Rewired . | . . . . Allies Hacked . | . . . . Hacks Repelled . | . . . . Allies | -11 -10 -9 -9 -------- Run | Yrd Mat Mat Sto Total Allies . | . . . . Largest Group . | . . . . Highest-Rated Group . | . . . . Highest-Rated Ally . | . . . . Total Orders . | . . . . Ally Attacks . | . . . . Total Damage . | . . . . Kills . | . . . . Allies Corrupted . | . . . . Allies Melted . | . . . . Intel | -11 -10 -9 -9 ------- Run | Yrd Mat Mat Sto Active Infowar (turns) 576 | . 195 232 149 Optics 576 | . 195 232 149 Robot Analysis Total . | . . . . Derelict Logs Recovered . | . . . . Drone Launches . | . . . . Drone Recoveries . | . . . . Exploration | -11 -10 -9 -9 ------------- Run | Yrd Mat Mat Sto Turns Passed 789 | 100 276 232 181 Spaces Moved 608 | 98 264 164 82 Core 34 | 25 . . 9 Treads . | . . . . Legs 237 | . . 164 73 Wheels 337 | 73 264 . . Hover . | . . . . Flight . | . . . . Fastest Speed 50 | 50 80 120 50 Average Speed 94 | 72 80 120 113 Slowest Speed 120 | 80 95 120 120 Overloaded Moves . | . . . . Propulsion Burnouts . | . . . . Robots Hopped . | . . . . Potential Cave-ins . | . . . . Cave-ins Triggered . | . . . . Exploration Rate (%) 21 | 5 46 20 16 Regions Visited 3 Branch Regions 1 Pre-discovered Areas . | . . . . Known Exits Taken . | . . . . Unknown Exits Taken 3 | 1 1 1 . Scrap Searched . | . . . . Spaces Dug . | . . . . Terrain Destroyed 15 | . 9 . 6 Melee . | . . . . Projectile . | . . . . AOE 15 | . 9 . 6 Terrain Rammed . | . . . . Walls Destroyed . | . . . . Machines Disabled . | . . . . Actions | -11 -10 -9 -9 --------- Run | Yrd Mat Mat Sto Total 726 | 119 299 185 123 Wait 1 | 1 . . . Move 605 | 97 263 163 82 Hop . | . . . . Pick Up 13 | 9 1 3 . Fast Attach 7 | 1 4 1 1 Attach 8 | 4 . 1 3 Detach 1 | . 1 . . Swap 5 | 1 2 2 . Drop 7 | . 5 2 . Fire 79 | 6 23 13 37 Melee . | . . . . Ram . | . . . . Kick . | . . . . Crush . | . . . . Escape Stasis . | . . . . Rewire . | . . . . Trap . | . . . . Miscellaneous . | . . . . Route ------- -11/Scrapyard -10/Materials (discovered 2 exits: *Mat / [*Min]) -9/Materials (discovered 2 exits: [*Min] / *Sto) -9/Storage History --------- Turn | Location | Event 2 | -11/Scrapyard | Met Revision 17 72 | -11/Scrapyard | Discovered new exit (range 8) 101 | -11/Scrapyard | Entered Materials 214 | -10/Materials | Discovered new exit (range 18) 312 | -10/Materials | Build established: Mutant 365 | -10/Materials | Core integrity fell below 50% 366 | -10/Materials | Discovered new exit (range 14) 377 | -10/Materials | Entered another Materials area 377 | -9/Materials | Evolved 2 slots: Power x2 418 | -9/Materials | Discovered new exit (range 12) 607 | -9/Materials | Discovered new exit (range 16) 609 | -9/Materials | Entered Storage 757 | -9/Storage | Core integrity fell below 50% 772 | -9/Storage | Core integrity fell below 20% 790 | -9/Storage | Destroyed by G-34 Mercenary with Small Laser Last Messages --------------- K-01 Serf collects debris. [Achievement: Crack Shot] Lgt. Armor Plating melted. Hammer melted. B-36 Bruiser destroyed. K-01 Serf collects debris. G-34 Mercenary destroyed. K-01 Serf collects debris. System corrupted: Substantial component data lost. G-34 Mercenary destroyed. K-01 Serf collects debris. Acquired 47 matter. K-01 Serf collects debris. Sml. Laser destroyed. Beam Rifle destroyed. K-01 Serf collects debris. K-01 Serf destroyed. K-01 Serf collects debris. [Achievement: First Step to Greatness] Map ----- +----------------------------------------------------+ | ?#####+######## ######??????????????? | | ?# #???# #?? ??????????????? | | ?# #???# %#?""" ??????????????? | | ?# """"" #???# # """???????????????? | | ?# "???" #???# # ""????????????????? | | ?# "??"" #???# + ??????????????????? | | ?# ""??" #???# #???????????????????? | | ?# ????" ##### #???????????????????? | | ?# """"" + #???????????????????? | | ?# #####% #???????????????????? | | ?##########???# #???????###?????????? | | ??????????????# #??####"T"#?????????? | | ??????????????# #? ?????????? | | ??????????????#!% # [ """ "??????????? | | ??????????????# =a# """ "??????????? | | ??????????????+ u """ "??????????? | | ??????????????# # #??????? | | ??????????????# g #####/##+#####??????? | | ??????????????# ##### #??????????? | | ??????????????#=% ????? | | ???????????##### ##g#####?????????? | | ???????????# %k%* #???????? | | ???????????# [ %=g #???????? | | ???????????# ! k #???????? | | ???????????# #?? #???????? | | ???????????# @ #?????#####???????? | | ???????????# #?????????????????? | | ???????????# #?????????????????? | | ???????????# #?????????????????? | | ???????????# #?????????????????? | | ???????????##########?????????????????? | | ??????????????????????????????????????? | | ??????????????????????????????????????? | | ??????????????????????????????????????? | | ??????????????????????????????????????? | | ??????????????????????????????????????? | | ??????????????????????????????????????? | | ??????????????????????????????????????? | | ??????????????????????????????????????? | | ??????????????????????????????????????? | | ??????????????????????????????????????? | | ??????????????????????????????????????? | | ??????????????????????????????????????? | | ??????????????????????????????????????? | | ??????????????????????????????????????? | | ??????????????????????????????????????? | | ??????????????????????????????????????? | | ??????????????????????????????????????? | | ??????????????????????????????????????? | | ??????????????????????????????????????? | +----------------------------------------------------+ Best States ------------- Heat Dissipation 38 Energy Generation 10 Energy Capacity 250 Matter Stores 300 Matter Capacity 300 Sight Range 18 Terrain Scan Density 10 Evasion (%) 55 Salvage Targeting 1 Item Schematics ----------------- None Robot Schematics ------------------ None Fabricated ------------ Nothing Repaired ---------- Nothing Studied --------- None Alien Tech Used ----------------- None Achievements -------------- Crack Shot First Step to Greatness I Have A Map? Organ Harvest Spot Them First There's More Where That Came From Uninvited Guest Challenges ------------ None Game ------ Seed SchematicDeuteriumBeacon Manual? 0 Play Time 00:48:53 Cumulative 0.7 hours Start 2026.03.01 @ 22:03:15 End 2026.03.01 @ 23:11:11 Sessions 1 Manual Loads 0 Difficulty Rogue Special Mode None Game No. 1 Rogue 1 Adventurer 0 Explorer 0 Win Type - Total 0 Types 0/0/0/0/0/0/0/0/0/0 Lore% 0 Gallery% 1 Achievement% 1 Wizard Run 0 Options --------- Layout 1 ASCII 0 Keyboard 0 Movement Mouse Keybinds 0 Fullscreen 1 Font 24/Crisp Map View 50x35 Zoom Use 0% Tactical HUD 0 Map Filters NONE Filters NONE Steam 1 RUN: 1e400281-4fc5-4625-948a-9e7fc4f3839b